bitfinex/quotes_SOLUSD_20250902
["timestamp","ask_amount","ask_price","bid_price","bid_amount"]
[1756854598574,1e-08,208.49,208.48,138.70747753]
[1756854599870,1e-08,208.49,208.48,105.6041007]
[1756854600070,1e-08,208.49,208.48,140.89236345]
[1756854600249,1e-08,208.49,208.48,141.58236345]
[1756854601472,1e-08,208.49,208.48,143.50400838]
[1756854601787,1e-08,208.49,208.48,136.78574028]
[1756854602376,1e-08,208.49,208.48,141.58236345]
[1756854603264,0.66000001,208.49,208.48,56.29221718]
[1756854603971,0.66000001,208.49,208.48,51.49559401]
[1756854604291,1e-08,208.49,208.48,51.49559401]
[1756854605285,1e-08,208.49,208.48,56.29221718]
[1756854605482,1e-08,208.49,208.48,60.76587876]
[1756854605782,0.66000001,208.49,208.48,51.49559401]
[1756854605990,0.66000001,208.49,208.48,51.47559401]
[1756854606189,0.66000001,208.49,208.48,13.59559401]
[1756854606489,5.13366159,208.49,208.48,37.88]
[1756854607885,9.9300547,208.49,208.48,37.88]
[1756854608083,9.9300547,208.49,208.47,37.88]
[1756854608288,5.13366158,208.48,208.46,37.88]
[1756854608472,31.13366158,208.47,208.4,13.59559401]
[1756854608781,4.47366158,208.43,208.41,37.88]
[1756854608984,4.47366158,208.43,208.42,0.03]
[1756854609374,30.47366158,208.43,208.42,0.03]
[1756854609580,0.66,208.43,208.42,0.03]
[1756854609885,0.66,208.43,208.42,37.91]
[1756854611468,26.68,208.47,208.43,13.59559401]
[1756854611687,26.68000001,208.49,208.44,37.88]
[1756854611878,26.00000001,208.49,208.44,37.88]
[1756854612190,0.68,208.48,208.44,37.88]
[1756854612388,0.68,208.48,208.45,13.59559401]
[1756854612575,1e-08,208.49,208.47,13.59559401]
[1756854612774,1e-08,208.49,208.48,55.94925559]
[1756854613164,1e-08,208.49,208.48,56.60925559]
[1756854613775,1e-08,208.49,208.48,61.40587876]
[1756854614686,1e-08,208.49,208.48,61.54804033]
[1756854614892,1e-08,208.49,208.48,61.83236347]
[1756854615080,1e-08,208.49,208.48,63.75410072]
[1756854616384,0.06,208.52,208.49,14.02207872]
[1756854616592,0.06,208.52,208.51,18.4957403]
[1756854617086,0.06,208.52,208.51,19.1557403]
[1756854618275,0.06,208.52,208.51,23.95167334]
[1756854622106,1e-08,208.54,208.53,119.7220787]
[1756854622274,0.06,208.57,208.54,14.02207872]
[1756854622616,0.06,208.57,208.56,18.4957403]
[1756854622969,0.06,208.57,208.56,23.95052357]
[1756854623391,0.06,208.59,208.56,23.95052357]
[1756854623605,0.06,208.59,208.57,57.0157403]
[1756854624473,0.06,208.59,208.57,61.81029368]
[1756854625489,0.2,208.64,208.59,39.87991715]
[1756854625672,0.2,208.64,208.59,157.5820787]
[1756854625873,0.2,208.64,208.59,162.71574028]
[1756854626690,0.2,208.64,208.59,167.50983395]
[1756854627195,0.2,208.64,208.59,129.64983395]
[1756854627374,0.06,208.63,208.59,102.98983395]
[1756854627571,0.06,208.63,208.59,139.2102483]
[1756854627975,0.06,208.63,208.59,139.8702483]
[1756854629189,1e-08,208.6,208.59,139.8702483]
[1756854630078,1e-08,208.6,208.59,99.17617237]
[1756854630396,1e-08,208.6,208.59,136.35617237]
[1756854630603,1e-08,208.6,208.59,139.2102483]
[1756854630801,1e-08,208.6,208.59,139.8702483]
[1756854632589,1e-08,208.6,208.59,98.51617237]
[1756854632792,1e-08,208.6,208.59,139.2102483]
[1756854633515,0.68000001,208.6,208.59,136.35617237]
[1756854634089,0.68000001,208.6,208.59,93.29559399]
[1756854634409,0.68000001,208.6,208.59,131.11559399]
[1756854634913,3.53407594,208.6,208.59,131.11559399]
[1756854636009,0.68000001,208.6,208.59,131.11559399]
[1756854637116,0.68000001,208.6,208.59,135.90968766]
[1756854637696,1e-08,208.6,208.59,139.8502483]
[1756854637914,1e-08,208.61,208.6,14.02207872]
[1756854638117,1e-08,208.61,208.6,17.53615465]
[1756854638588,1e-08,208.61,208.6,97.23615463]
[1756854638789,1e-08,208.63,208.62,44.81548299]
[1756854639009,1e-08,208.63,208.62,85.48955892]
[1756854639519,1e-08,208.63,208.62,86.14955892]
[1756854639895,1e-08,208.63,208.62,48.32955892]
[1756854640215,1e-08,208.63,208.62,86.14955892]
[1756854641495,1e-08,208.63,208.62,21.66955892]
[1756854641691,1e-08,208.63,208.62,18.38899828]
[1756854641896,0.72000001,208.63,208.62,56.20899828]
[1756854642195,0.72000001,208.63,208.62,56.35115985]
[1756854642410,0.72000001,208.63,208.62,56.63548299]
[1756854642716,0.72000001,208.63,208.62,51.41559401]
[1756854642894,0.72000001,208.63,208.62,56.20899828]
[1756854643096,0.72000001,208.63,208.62,51.41559401]
[1756854643292,3.57407594,208.63,208.62,51.41559401]
[1756854643527,3.57407594,208.63,208.6,4.79383358]
[1756854643821,3.57407593,208.62,208.61,51.41559401]
[1756854644119,0.72,208.62,208.61,51.41559401]
[1756854645221,3.57407593,208.62,208.59,0.03]
[1756854645410,0.72,208.62,208.6,37.82]
[1756854645587,0.72,208.61,208.6,37.82]
[1756854646187,1e-08,208.63,208.6,56.35161943]
[1756854646804,0.72,208.62,208.6,56.35161943]
[1756854647624,1e-08,208.63,208.6,56.35161943]
[1756854648324,1e-08,208.63,208.6,57.03161943]
[1756854648806,1e-08,208.63,208.61,14.02207872]
[1756854649005,1e-08,208.63,208.62,54.69615465]
[1756854649211,1e-08,208.64,208.63,14.02207872]
[1756854649528,1e-08,208.64,208.63,17.55615465]
[1756854649824,1e-08,208.64,208.63,22.34932916]
[1756854650695,1e-08,208.64,208.63,56.63525323]
[1756854651027,0.72000001,208.64,208.62,4.79337728]
[1756854651325,0.72000001,208.64,208.63,37.82]
[1756854652095,2.91407593,208.66,208.63,37.82]
[1756854652096,1e-08,208.66,208.63,59.88500602]
[1756854652421,4.420651,208.8,208.63,59.88500602]
[1756854652422,0.72,208.82,208.72,13.59559401]
[1756854652723,0.72,208.82,208.78,13.59559401]
[1756854652913,0.72,208.82,208.78,51.93559401]
[1756854653296,0.72,208.82,208.78,54.78966994]
[1756854653599,6.70398492,208.84,208.78,63.50930974]
[1756854653920,6.70398492,208.84,208.78,56.72532482]
[1756854653921,6.78398492,208.84,208.78,56.72532482]
[1756854654597,6.78398492,208.85,208.78,63.50930974]
[1756854654926,6.78398492,208.85,208.8,13.59559401]
[1756854655106,6.78398492,208.85,208.81,38.32]
[1756854655705,0.62,208.84,208.81,38.32]
[1756854656026,0.62,208.83,208.81,38.32]
[1756854657729,7.40398492,208.83,208.81,38.32]
[1756854658100,26.62,208.83,208.76,0.68]
[1756854658297,6.78398492,208.8,208.77,51.85559401]
[1756854658708,0.62,208.83,208.77,51.85559401]
[1756854658709,6.78398492,208.82,208.77,51.85559401]
[1756854658930,7.40398492,208.83,208.77,52.53559401]
[1756854659224,6.78398492,208.83,208.77,59.31957893]
[1756854659799,26.0,208.85,208.79,13.59559401]
[1756854660003,6.78398492,208.84,208.81,13.59559401]
[1756854660309,6.78398492,208.84,208.82,38.24]
[1756854661629,6.78398492,208.83,182.5,0.29721096]
[1756854661832,6.78398492,208.82,208.77,13.59559401]
[1756854662005,6.78398492,208.82,208.79,13.59559401]
[1756854662205,6.78398492,208.82,208.77,5.46986678]
[1756854662423,32.78398492,208.83,208.79,13.59559401]
[1756854662731,32.78398492,208.83,208.8,38.22]
[1756854662933,6.78398492,208.82,208.8,38.22]
[1756854663425,6.78398492,208.81,208.76,4.79017173]
[1756854663626,6.78398492,208.8,208.74,5.75475573]
[1756854663808,6.78398492,208.79,208.75,52.22207872]
[1756854664218,6.78398492,208.79,208.75,52.90207872]
[1756854665055,6.78398492,208.79,208.77,13.59559401]
[1756854665201,6.78398492,208.79,208.78,38.18]
[1756854668138,6.78398492,208.79,208.78,38.14]
[1756854668338,6.78398492,208.79,208.72,0.42648471]
[1756854668339,6.78398492,208.79,208.7,79.7]
[1756854668516,6.78398492,208.74,208.72,13.59559401]
[1756854668716,6.78398492,208.74,208.72,14.27559401]
[1756854668928,6.78398492,208.74,208.73,52.39559401]
[1756854669537,0.62,208.81,208.74,13.59559401]
[1756854669735,6.78398492,208.79,208.76,13.59559401]
[1756854669942,6.78398492,208.79,208.77,38.1]
[1756854670920,6.78398492,208.8,208.78,0.68]
[1756854671216,6.78398492,208.8,208.79,38.1]
[1756854671830,7.40398492,208.8,208.73,79.7]
[1756854672134,6.78398492,208.74,208.73,13.59559401]
[1756854672332,6.78398492,208.76,208.73,52.35559401]
[1756854672548,6.78398492,208.78,208.74,0.7]
[1756854672718,31.40869162,208.83,208.76,13.59559401]
[1756854672719,6.78398492,208.79,208.76,13.59559401]
[1756854672917,6.78398492,208.79,208.77,38.06]
[1756854673214,6.78398492,208.8,208.78,13.59559401]
[1756854673530,6.78398492,208.79,208.74,0.14216157]
[1756854673738,6.78398492,208.79,208.76,13.59559401]
[1756854673914,6.78398492,208.79,208.77,38.04]
[1756854674110,0.06,208.84,208.78,21.07957893]
[1756854674412,6.84398492,208.84,208.8,13.59559401]
[1756854674625,6.78398492,208.83,208.81,38.04]
[1756854674831,26.06,208.84,208.81,38.04]
[1756854675142,32.84398492,208.84,208.81,38.74]
[1756854675435,28.90947293,208.84,208.81,38.74]
[1756854675735,28.90947293,208.84,208.81,38.04]
[1756854675935,28.90947293,208.84,208.81,42.82896934]
[1756854677522,28.90947293,208.84,208.81,43.52896934]
[1756854677721,2.90947293,208.84,208.81,42.82896934]
[1756854677923,0.06,208.84,208.82,14.29559401]
[1756854678124,0.06,208.84,208.83,37.98]
[1756854678335,0.06,208.84,208.83,38.68]
[1756854679217,0.06,208.84,208.83,37.98]
[1756854679420,0.06,208.84,208.83,51.55559401]
[1756854679613,2.90947293,208.84,208.83,37.96]
[1756854681138,0.06,208.84,208.83,52.25559401]
[1756854681342,0.06,208.84,208.83,57.04417802]
[1756854682343,0.06,208.84,208.83,57.47066273]
[1756854682525,0.06,208.84,208.83,140.02013566]
[1756854683048,0.06,208.84,208.83,102.06013566]
[1756854683218,0.06,208.84,208.83,139.98013566]
[1756854683420,0.06,208.84,208.83,143.47439384]
[1756854683846,0.06,208.84,208.83,140.62492091]
[1756854684055,0.06,208.84,208.83,143.47439384]
[1756854684352,0.06,208.84,208.83,143.45439384]
[1756854685448,0.06,208.84,208.83,105.55439384]
[1756854685747,0.06,208.84,208.83,137.09066273]
[1756854686251,0.06,208.84,208.83,136.66417802]
[1756854686451,0.06,208.84,208.81,2.87947293]
[1756854686452,3.52947293,208.84,208.81,0.03]
[1756854686750,0.62,208.83,208.82,37.86]
[1756854687627,26.06,208.84,208.81,0.03]
[1756854687828,26.06,208.84,208.82,37.86]
[1756854688233,0.68,208.84,208.82,37.86]
[1756854689033,2.84947293,208.83,208.82,37.86]
[1756854689540,4.4534025,208.83,208.81,0.03]
[1756854689718,4.4534025,208.83,208.82,37.84]
[1756854691134,0.06,208.84,208.83,13.59559401]
[1756854691454,0.06,208.84,208.83,14.29559401]
[1756854692745,0.06,208.84,208.83,103.66406523]
[1756854693922,0.06,208.84,208.83,93.29559401]
[1756854694131,0.06,208.84,208.83,131.09559401]
[1756854694344,0.06,208.84,208.83,136.58417802]
[1756854695355,0.06,208.84,208.83,137.01066273]
[1756854696239,4.5134025,208.84,208.83,131.09559401]
[1756854697156,0.06,208.84,208.83,136.58417802]
[1756854697853,0.06,208.84,208.83,137.01066273]
[1756854698930,0.06,208.84,208.83,93.29559401]
[1756854699141,0.06,208.84,208.83,131.09559401]
[1756854699343,4.5134025,208.84,208.83,37.8]
[1756854699956,0.06,208.84,208.83,37.8]
[1756854700755,4.5134025,208.84,208.81,13.62559401]
[1756854700969,4.4534025,208.82,208.81,0.03]
[1756854701259,4.4534025,208.82,208.81,37.83]
[1756854703943,0.06,208.84,208.81,37.83]
[1756854704136,4.4534025,208.82,208.81,37.83]
[1756854705553,4.4534025,208.82,208.81,0.03]
[1756854705756,4.4534025,208.82,208.81,37.83]
[1756854706149,4.4534025,208.82,208.81,0.03]
[1756854706349,0.06,208.84,208.81,38.51]
[1756854706540,0.06,208.84,208.82,14.27559401]
[1756854706748,0.06,208.84,208.83,37.8]
[1756854707572,0.06,208.84,208.83,43.26858401]
[1756854708066,4.5134025,208.84,208.83,42.58858401]
[1756854709475,0.06,208.84,208.83,42.58858401]
[1756854709760,0.06,208.84,208.83,37.8]
[1756854710149,4.5134025,208.84,208.83,37.8]
[1756854714871,4.5134025,208.84,208.81,4.81904267]
[1756854715084,4.4534025,208.82,208.81,0.03]
[1756854715257,4.4534025,208.82,208.81,37.83]
[1756854717159,4.4534025,208.82,208.81,0.03]
[1756854717489,4.4534025,208.82,208.81,43.29904267]
[1756854717664,30.4534025,208.83,208.81,43.29904267]
[1756854717866,4.4534025,208.83,208.81,38.51]
[1756854718180,4.4534025,208.83,208.81,43.29898639]
[1756854719471,0.06,208.84,208.82,0.68]
[1756854719679,0.06,208.84,208.83,37.8]
[1756854720389,4.5134025,208.84,208.83,37.8]
[1756854721184,0.06,208.84,208.83,37.8]
[1756854721355,4.5134025,208.84,208.83,37.8]
[1756854723468,0.06,208.84,208.83,38.48]
[1756854724157,4.5134025,208.84,208.83,37.8]
[1756854724890,4.5134025,208.84,208.83,42.58858401]
[1756854725396,0.06,208.84,208.83,43.26858401]
[1756854726186,0.06,208.84,208.83,56.86417802]
[1756854728793,0.06,208.84,208.83,136.56417802]
[1756854730576,0.06,208.84,208.83,141.01758052]
[1756854730776,0.06,208.84,208.83,141.44406523]
[1756854731087,0.06,208.84,208.83,141.47406523]
[1756854731793,0.06,208.87,208.84,14.02207872]
[1756854731987,0.06,208.87,208.86,18.80997491]
[1756854732189,0.06,208.87,208.86,102.96337741]
[1756854732383,0.06,208.87,208.86,103.67337741]
[1756854732784,0.06,208.87,208.86,107.21221576]
[1756854736898,0.06,208.87,208.86,101.62232855]
[1756854737199,0.06,208.87,208.86,139.42232855]
[1756854738177,0.06,208.87,208.86,101.62232855]
[1756854738391,0.06,208.87,208.86,139.40232855]
[1756854738594,0.06,208.87,208.86,101.62232855]
[1756854738905,0.06,208.87,208.86,139.40232855]
[1756854741496,0.06,208.87,208.86,144.99221576]
[1756854743395,0.06,208.89,208.86,144.99221576]
[1756854743699,4.4534025,209.01,208.93,0.28432314]
[1756854744002,3.90791253,209.08,208.97,13.59559401]
[1756854744003,5.0734025,209.02,208.97,13.59559401]
[1756854744180,11.95592547,209.11,208.98,37.78]
[1756854744383,26.0,209.03,208.99,13.59559401]
[1756854744785,5.0734025,209.04,208.99,13.59559401]
[1756854744786,0.62,209.04,208.99,13.59559401]
[1756854744991,4.4534025,209.03,208.99,13.59559401]
[1756854745197,5.0734025,209.04,208.99,13.59559401]
[1756854746407,5.0734025,209.04,208.99,18.38051194]
[1756854746609,8.23627507,209.16,208.99,23.97039915]
[1756854746783,5.0734025,209.09,208.99,27.49530775]
[1756854747205,5.0734025,209.09,208.99,23.97039915]
[1756854747404,4.4534025,209.08,208.99,23.97039915]
[1756854748407,0.62,209.09,208.99,23.97039915]
[1756854748707,4.4534025,209.11,208.99,27.4896865]
[1756854748897,0.62,209.1,208.99,27.4896865]
[1756854749594,5.0734025,209.1,208.99,27.4896865]
[1756854750313,0.62,209.1,208.99,27.4896865]
[1756854751107,5.06,209.0,208.99,27.4896865]
[1756854751494,5.06,209.0,208.99,25.87843329]
[1756854751711,1e-08,209.03,209.02,39.59559401]
[1756854751905,1e-08,209.03,209.02,80.62422801]
[1756854752212,1e-08,209.03,209.02,81.33422801]
[1756854753414,1e-08,209.03,209.02,86.08636377]
[1756854753814,1e-08,209.03,209.02,90.87059494]
[1756854754925,1e-08,209.03,209.02,94.3739373]
[1756854758815,1e-08,209.03,209.02,166.57196094]
[1756854759222,1e-08,209.03,209.02,166.99844565]
[1756854760021,1e-08,209.03,209.02,129.25844565]
[1756854760215,1e-08,209.03,209.02,166.99844565]
[1756854760417,1e-08,209.03,209.02,174.04528264]
[1756854764392,3.46214929,209.09,209.03,93.72207871]
[1756854764594,3.46214929,209.08,209.05,14.02207872]
[1756854764798,3.46214929,209.08,209.07,13.59559401]
[1756854766032,3.46214929,209.08,209.05,0.42648471]
[1756854766323,3.46214929,209.08,209.07,13.59559401]
[1756854766816,2.84214929,209.08,209.07,13.59559401]
[1756854767021,2.84214929,209.08,209.07,51.33559401]
[1756854767203,3.46214929,209.08,209.07,51.33559401]
[1756854767399,2.84214929,209.09,209.07,51.33559401]
[1756854767601,2.84214929,209.09,209.08,13.59559401]
[1756854767804,2.84214929,209.1,209.08,93.295594]
[1756854768019,3.46214929,209.1,209.09,37.74]
[1756854768218,2.84214929,209.1,209.08,93.295594]
[1756854768426,2.84214929,209.1,209.09,37.72]
[1756854769231,3.46214929,209.1,209.09,37.72]
[1756854769616,0.62,209.12,209.09,37.72]
[1756854769825,2.84214929,209.1,209.09,37.72]
[1756854770429,2.84214929,209.1,209.08,93.295594]
[1756854770731,2.84214929,209.1,209.09,37.72]
[1756854773227,2.84214929,209.1,209.09,117.41999999]
[1756854774830,0.06,209.11,209.09,37.72]
[1756854775030,2.84214929,209.1,209.09,37.72]
[1756854776828,2.84214929,209.1,209.08,13.59559401]
[1756854777129,2.84214929,209.1,209.09,37.72]
[1756854777333,2.84214929,209.1,209.07,13.59559401]
[1756854777524,2.84214929,209.08,209.06,13.59559401]
[1756854777725,3.46214929,209.07,209.04,79.69999999]
[1756854777933,4.84224502,209.11,209.02,0.7]
[1756854777934,2.84214929,209.05,209.02,13.59559401]
[1756854778118,2.84214929,209.05,209.04,13.59559401]
[1756854778723,2.84214929,209.05,209.04,51.31559401]
[1756854778923,2.84214929,209.05,209.02,13.59559401]
[1756854779127,2.84214929,209.04,209.03,51.31559401]
[1756854780114,0.62,209.05,209.03,51.31559401]
[1756854780540,2.84214929,209.04,209.03,51.31559401]
[1756854781414,2.84214929,209.04,209.03,3.50723566]
[1756854781735,3.46214929,209.04,209.03,37.72]
[1756854784021,3.46214929,209.04,208.99,0.03]
[1756854784022,34.24597823,209.04,208.99,0.03]
[1756854784225,2.84214929,209.0,208.99,0.03]
[1756854784445,2.84214929,209.0,208.99,37.73]
[1756854784940,2.84214929,209.0,208.99,41.24533963]
[1756854785522,26.62,209.07,208.99,41.94533963]
[1756854785736,2.84214929,209.03,209.0,4.21533963]
[1756854785940,2.84214929,209.03,209.01,41.21533963]
[1756854786135,2.84214929,209.03,209.01,38.4]
[1756854786439,30.78274028,209.09,209.02,4.21986591]
[1756854786652,30.78274028,209.09,209.03,41.92039576]
[1756854786653,2.84214929,209.06,209.03,41.92039576]
[1756854786825,2.84214929,209.06,209.04,4.22039576]
[1756854787141,2.84214929,209.06,209.05,37.7]
[1756854787337,2.84214929,209.06,209.05,41.22186889]
[1756854788544,2.90214929,209.08,209.05,41.92186889]
[1756854788737,2.90214929,209.08,209.06,4.22186889]
[1756854788950,2.90214929,209.08,209.07,41.22186889]
[1756854789762,8.30500752,209.08,209.07,37.7]
[1756854790640,3.52214929,209.08,209.07,37.7]
[1756854791160,2.90214929,209.08,209.07,37.7]
[1756854791539,2.90214929,209.08,209.05,0.71]
[1756854791742,2.90214929,209.08,209.06,3.53087837]
[1756854791743,2.84214929,209.07,209.06,3.53087837]
[1756854792359,2.84214929,209.07,209.06,41.23134932]
[1756854792564,2.84214929,209.07,209.06,37.7]
[1756854793857,0.06,209.08,209.06,37.7]
[1756854794054,2.84214929,209.07,209.06,37.7]
[1756854794668,2.84214929,209.07,209.04,80.40999999]
[1756854794967,4.84297845,209.08,209.05,41.23105191]
[1756854795141,0.62,209.07,209.05,37.7]
[1756854795946,2.84214929,209.06,209.05,37.7]
[1756854796265,0.62,209.07,209.05,41.23125977]
[1756854796445,2.84214929,209.06,209.05,37.7]
[1756854796772,2.84214929,209.06,209.05,41.23062201]
[1756854798248,2.84214929,209.06,209.05,37.7]
[1756854798447,2.84214929,209.06,209.03,0.71]
[1756854798761,4.78309998,209.07,209.04,41.23027591]
[1756854798971,2.84214929,209.05,209.01,0.71]
[1756854799162,2.84214929,209.03,209.02,41.23027741]
[1756854799353,2.84214929,209.03,209.02,41.94027741]
[1756854799871,2.84214929,209.04,209.02,4.24027741]
[1756854800070,2.84214929,209.03,209.02,0.71]
[1756854800366,2.84214929,209.04,209.02,41.93994856]
[1756854800562,4.78310491,209.07,209.03,3.52994856]
[1756854800742,0.62,209.04,208.99,14.33559401]
[1756854800939,0.62,209.06,209.0,41.94006752]
[1756854801154,0.62,209.06,209.01,3.53006752]
[1756854801360,0.62,209.05,209.02,41.23006752]
[1756854801570,0.62,209.05,209.02,37.7]
[1756854801768,5.40310491,209.07,209.02,37.7]
[1756854802069,0.06,209.08,209.02,37.7]
[1756854802070,2.84214929,209.03,209.02,37.7]
[1756854802256,2.84214929,209.03,209.02,41.23025065]
[1756854803565,2.84214929,209.03,209.02,41.21025065]
[1756854804662,8.24615158,209.03,209.02,3.53025065]
[1756854804861,7.62615158,209.03,209.02,37.68]
[1756854805287,7.62615158,209.03,208.99,0.03]
[1756854805568,5.40400229,209.03,209.0,41.20850476]
[1756854805772,0.62,209.02,208.99,0.03]
[1756854805987,2.53777538,209.02,209.0,37.68]
[1756854806150,26.0,209.0,208.99,0.03]
[1756854806445,26.0,209.0,208.99,37.71]
[1756854806649,30.78468899,209.0,208.99,37.71]
[1756854806848,33.62683828,209.0,208.99,37.71]
[1756854808774,48.01222273,209.0,208.99,37.71]
[1756854808982,14.38538445,209.0,208.99,38.42]
[1756854809166,2.84214929,209.0,208.99,41.94594857]
[1756854809685,2.84214929,209.0,208.99,38.42]
[1756854810064,2.84214929,209.0,208.99,37.71]
[1756854811481,4.44657943,209.0,208.99,37.71]
[1756854813458,26.0,209.04,208.99,38.42]
[1756854813662,26.0,209.04,208.99,37.71]
[1756854813886,4.44657943,209.02,208.99,37.71]
[1756854814178,4.44657943,209.02,209.0,4.23486373]
[1756854814394,4.44657943,209.02,209.01,0.71]
[1756854814756,26.0,209.05,209.01,0.71]
[1756854815084,4.44657943,209.04,209.02,41.20380977]
[1756854815268,4.44657943,209.04,209.03,0.71]
[1756854818072,0.06,209.06,209.04,13.59559401]
[1756854818387,0.06,209.06,209.05,21.99424993]
[1756854818779,0.06,209.06,209.05,23.9106471]
[1756854819083,0.06,209.06,209.05,28.6941917]
[1756854820268,0.06,209.06,209.05,24.24761227]
[1756854820664,0.06,209.06,209.05,66.3541917]
[1756854820864,0.06,209.06,209.05,67.0641917]
[1756854821587,0.06,209.06,209.05,29.4041917]
[1756854821891,0.06,209.06,209.05,67.0641917]
[1756854822785,0.06,209.06,209.05,29.4041917]
[1756854822970,0.06,209.06,209.05,67.0641917]
[1756854823381,0.06,209.06,209.05,29.4041917]
[1756854823593,0.06,209.06,209.05,146.7641917]
[1756854825482,0.06,209.08,209.06,13.59559401]
[1756854825782,0.06,209.08,209.07,59.22776522]
[1756854826089,0.06,209.08,209.07,61.8541624]
[1756854826590,0.06,209.08,209.07,141.5541624]
[1756854827574,0.06,209.08,209.07,104.37283154]
[1756854827774,0.06,209.08,209.07,103.94715468]
[1756854827986,0.06,209.08,209.07,139.26427279]
[1756854828192,0.06,209.08,209.07,59.56427279]
[1756854828380,0.06,209.08,209.07,22.61427279]
[1756854828580,0.06,209.08,209.07,60.27427279]
[1756854828785,0.06,209.08,209.07,65.14733693]
[1756854829876,1e-08,209.08,209.07,146.7637341]
[1756854830416,0.06,209.11,209.1,39.59559401]
[1756854830705,0.06,209.11,209.1,85.22776522]
[1756854830887,0.06,209.11,209.1,81.49118579]
[1756854831084,0.06,209.11,209.1,86.36424993]
[1756854831493,0.06,209.11,209.1,91.14665069]
[1756854832574,1e-08,209.11,209.1,91.14665069]
[1756854833073,1e-08,209.11,209.1,170.84665069]
[1756854833702,1e-08,209.11,209.1,175.29323012]
[1756854834083,1e-08,209.11,209.1,179.19436818]
[1756854835698,1e-08,209.11,209.1,170.84665069]
[1756854835997,1e-08,209.11,209.1,175.27323012]
[1756854836392,1e-08,209.11,209.1,170.82665069]
[1756854836589,1e-08,209.11,209.1,133.18665069]
[1756854836781,1e-08,209.11,209.1,175.27323012]
[1756854837208,1e-08,209.11,209.1,137.63323012]
[1756854837503,1e-08,209.11,209.1,175.27323012]
[1756854837878,1e-08,209.11,209.1,137.63323012]
[1756854838079,1e-08,209.11,209.1,174.84674541]
[1756854838505,1e-08,209.11,209.1,175.27323012]
[1756854838698,1e-08,209.11,209.1,137.49106855]
[1756854838901,1e-08,209.11,209.1,175.27323012]
[1756854839603,1e-08,209.11,209.1,137.63323012]
[1756854839804,1e-08,209.11,209.1,175.27323012]
[1756854844309,5.06657944,209.11,209.1,4.44657943]
[1756854844509,1e-08,209.11,209.1,47.57898019]
[1756854844720,1e-08,209.11,209.1,45.92051138]
[1756854844906,1e-08,209.11,209.1,56.30231791]
[1756854845082,1e-08,209.11,209.1,61.45889734]
[1756854845286,1e-08,209.11,209.1,91.09936404]
[1756854845585,1e-08,209.11,209.1,96.16594347]
[1756854846704,1e-08,209.11,209.1,65.00936404]
[1756854847016,1e-08,209.11,209.1,27.36936404]
[1756854847313,1e-08,209.11,209.1,69.88162033]
[1756854847815,1e-08,209.11,209.1,70.16594347]
[1756854850440,0.06,209.14,209.13,40.02207872]
[1756854850627,0.06,209.14,209.13,81.16038385]
[1756854851121,0.68,209.14,209.13,51.23559401]
[1756854851513,0.68,209.14,209.13,13.59559401]
[1756854851704,0.68,209.14,209.13,51.23559401]
[1756854852323,0.06,209.14,209.13,51.23559401]
[1756854852621,0.06,209.14,209.13,56.01730873]
[1756854852828,0.68,209.14,209.13,56.01730873]
[1756854853324,0.06,209.14,209.13,56.44379344]
[1756854853513,0.06,209.14,209.13,65.05180849]
[1756854853712,0.06,209.14,209.13,70.11838792]
[1756854857906,1e-08,209.14,209.13,149.81838791]
[1756854859711,4.44657943,209.25,209.13,161.77267471]
[1756854859917,4.44657943,209.25,209.2,13.59559401]
[1756854860126,0.62,209.24,209.21,41.12143562]
[1756854860312,0.62,209.24,209.22,3.5086775]
[1756854860531,4.44657943,209.25,209.23,37.62]
[1756854860829,4.44657943,209.28,209.24,13.59559401]
[1756854861036,4.44657943,209.28,209.27,0.42648471]
[1756854861222,5.06657943,209.31,209.28,13.59559401]
[1756854861417,0.62,209.3,209.29,51.45559401]
[1756854862132,5.06657943,209.38,209.34,13.59559401]
[1756854862437,0.1,209.39,209.36,13.59559401]
[1756854862438,4.54657943,209.39,209.36,13.59559401]
[1756854862634,0.1,209.39,209.37,38.08]